[Event "29th Bosnjaci Open 2025"]
[Site "Bosnjaci"]
[Date "2025.01.03"]
[Round "1.7"]
[White "Milanovic, Josip"]
[Black "Muratovic, Efim"]
[Result "0-1"]
[ECO "E12"]
[WhiteElo "1917"]
[BlackElo "2322"]
[Annotator "TA"]
[PlyCount "142"]
[EventDate "2025.01.04"]
[EventType "swiss"]
[EventCountry "CRO"]
[SourceTitle "playchess.com"]
[Source "ChessBase"]
[SourceQuality "1"]
[TimeControl "5400+30"]

{[%evp 11,142,66,73,71,73,70,91,35,86,91,110,111,127,106,110,102,106,82,130,24,19,0,0,-4,17,-2,0,-9,0,0,3,14,27,0,21,-16,0,0,118,93,175,158,157,0,61,0,0,-82,6,18,9,-52,0,0,0,-20,0,-64,0,-33,37,-60,-42,-39,-51,-32,55,52,76,82,87,66,68,0,0,-108,-112,-372,-385,-381,-322,-319,0,0,0,0,0,0,0,0,0,-83,-88,-100,-100,-94,-96,-108,-95,-111,-136,-195,0,0,0,0,0,0,0,-228,-220,-222,-252,-252,-233,-305,-295,-410,-422,-537,-539,-530,-497,-471,-467,-567,-541,-1041,-1040,-2527,-2307,-2502,-2262]} 1. d4 {[%emt 0:06:48]} Nf6 {[%emt 0:00:54]} 2. Nf3 {[%emt 0:02:40]} b6 {[%emt 0:00:44]} 3. c4 {[%emt 0:02:22]} e6 {[%emt 0:00:19]} 4. Nc3 {[%emt 0:00:15]} Bb7 {[%emt 0:00:38]} 5. Qc2 {[%emt 0:01:33]} Be7 {[%emt 0:07:06]} 6. e4 {[%emt 0:02:02]} d6 {[%emt 0:00:13]} 7. Be2 {[%emt 0:00:31]} O-O {[%emt 0:02:38]} 8. O-O {[%emt 0:00:24]} Nc6 {[%emt 0:05:19]} 9. h3 {[%emt 0:00:54]} (9. Rd1 $16) 9... Nd7 {[%emt 0:05:23]} (9... e5 $14) 10. Be3 {[%emt 0:01:07]} e5 {[%emt 0:02:40]} 11. d5 {[%emt 0:03:45]} Nb4 {[%emt 0:04:56]} 12. Qa4 {[%emt 0:01:06]} a5 {[%emt 0:00:15]} 13. a3 {[%emt 0:00:44]} Na6 {[%emt 0:01:01]} 14. Qc2 {[%emt 0:00:51]} Ndc5 {[%emt 0:04:58]} (14... Bc8) 15. Nd2 {[%emt 0:02:00]} (15. Rab1 $1 $16) 15... Bc8 {[%emt 0:01:18]} 16. f4 {[%emt 0:11:18]} exf4 {[%emt 0:00:46]} 17. Bxf4 {[%emt 0:03:58]} Bf6 {[%emt 0:00:55]} 18. Kh1 {[%emt 0:04:32]} Re8 {[%emt 0:00:53]} 19. Bf3 {[%emt 0:01:58]} Bd7 {[%emt 0:06:03]} 20. b3 {[%emt 0:01:20]} Bd4 {[%emt 0:04:33]} 21. Rab1 {[%emt 0:01:14]} Qh4 {[%emt 0:04:37]} 22. Ne2 {[%emt 0:01:42]} Bf6 {[%emt 0:05:35]} 23. Bg3 {[%emt 0:05:57]} Qg5 {[%emt 0:00:19]} 24. Bf4 {[%emt 0:00:32]} Qg6 {[%emt 0:00:17]} (24... Qh4 $1 $11) 25. Ng3 $1 $16 {[%emt 0:01:17]} h6 {[%emt 0:07:29]} (25... Re5 $16) 26. Bh5 $18 {[%emt 0:02:19]} Qh7 {[%emt 0:00:13]} 27. Rbe1 $2 {[%emt 0:04:47]} (27. Be3 $1 $16) 27... Re7 {[%emt 0:01:09]} (27... g6 $11) 28. Be3 {[%emt 0:08:46]} (28. Nf5 $14 Bxf5 29. exf5) 28... Bh4 $11 {[%emt 0:02:59]} 29. Rf3 {[%emt 0:03:18]} (29. Bf2 $11) 29... Rae8 {[%emt 0:00:45]} (29... g6 $17) 30. Ref1 {[%emt 0:01:18]} g6 {[%emt 0:04:23]} 31. Bg4 {[%emt 0:07:31]} (31. Qc3 $11) 31... Qg7 {[%emt 0:05:30]} (31... Bxg4 $15 32. hxg4 Bxg3 33. Rxg3 Nxe4) 32. Bxd7 {[%emt 0:01:57]} Nxd7 {[%emt 0:00:02]} 33. Bf2 {[%emt 0:01:49][%cal Og3f5]} Bg5 {[%emt 0:01:24]} 34. Be3 {[%emt 0:01:30]} (34. h4 $11 Bf6 (34... Bxh4 35. Nf5 $16) 35. c5) 34... Bh4 {[%emt 0:02:04]} (34... Ne5 $5 35. Bxg5 hxg5 $15) 35. Bf2 {[%emt 0:00:28][%cal Og3f5] and Nf5! would now be decisive} Bf6 {[%emt 0:02:18] [#]} (35... Bxg3 $15 36. Rxg3 Nac5) 36. Rxf6 {[%emt 0:02:53]} Qxf6 {[%emt 0:00:33]} 37. Bxb6 $1 {[%emt 0:00:22]} Qg5 {[%emt 0:01:54]} (37... Qe5 $5 38. Bf2 $8 h5 $15) 38. Bf2 {[%emt 0:00:12]} Nac5 {[%emt 0:00:33]} (38... h5 $15) 39. b4 $1 $14 {[%emt 0:00:25]} axb4 {[%emt 0:00:13]} 40. axb4 {[%emt 0:00:02]} Na6 {[%emt 0:01:25]} 41. Nf3 {[%emt 0:00:25][%mdl 1024] White has strong compensation.} Qf4 $1 {[%emt 0:01:03]} (41... Nxb4 $2 42. Qb1 Qf4 43. Qxb4 $18) 42. Qa4 {[%emt 0:00:17]} (42. Qc3 $14) 42... Nab8 $1 $11 {[%emt 0:00:20]} 43. Qa5 {[%emt 0:00:52]} (43. Qc2 $11) 43... Ne5 $17 {[%emt 0:02:55]} 44. Ne2 $2 {[%emt 0:00:31][%mdl 8192]} (44. Qa3 $17) 44... Qxe4 $19 {[%emt 0:00:22]} 45. Ned4 {[%emt 0:03:11]} Nxc4 {[%emt 0:01:06]} 46. Qb5 {[%emt 0:00:03]} Nb6 $2 {[%emt 0:02:58]} (46... Qd3 $19 47. Rc1 Nb2 48. Rxc7 Qxb5 49. Nxb5 Rxc7 50. Nxc7 Re2) 47. Re1 $11 {[%emt 0:00:10]} Qxd5 {[%emt 0:02:44]} 48. Qxe8+ {[%emt 0:00:07]} Rxe8 {[%emt 0:00:11]} 49. Rxe8+ {[%emt 0:00:05]} Kg7 {[%emt 0:00:29]} 50. Rxb8 {[%emt 0:00:02]} Qa2 {[%emt 0:00:36]} 51. Bg3 {[%emt 0:01:00]} (51. Be1 $11 {keeps the balance.}) 51... Nd5 $1 $17 {[%emt 0:00:13]} 52. b5 {[%emt 0:02:28]} Ne3 {[%emt 0:01:37][%csl Ge3][%cal Ra2g2]} 53. Ne1 {[%emt 0:00:38]} Nf1 {[%emt 0:01:26]} 54. Bf4 {[%emt 0:01:44]} Qa7 $1 $36 {[%emt 0:01:39][%csl LRb8,LRd4][%mdl 2048] Black has strong initiative.} 55. Nc6 {[%emt 0:00:34] [#]} Qa1 $1 {[%emt 0:00:21] The board is on fire.} 56. Re8 {[%emt 0:00:47] [#]} (56. Nd3 $17 {was necessary.}) 56... g5 $2 {[%emt 0:00:40]} ({Better is} 56... Qa4 $1 $19 {[%cal Ra4f4]} 57. Nd3 Qxb5) 57. Bh2 $11 {[%emt 0:02:17]} Qa4 {[%emt 0:01:27]} 58. Bg1 {[%emt 0:00:32]} Ng3+ {[%emt 0:01:18]} (58... Qxb5 $5 59. Bd4+ $8 f6 60. Re7+ Kf8 61. Rxc7 Ng3+ 62. Kh2 Nf1+ 63. Kh1 $11 (63. Kg1 Ng3 $11)) 59. Kh2 {[%emt 0:00:28]} Nf5 {[%emt 0:01:32] Wards off Bd4+} 60. Nd4 $2 {[%emt 0:01:56]} Nxd4 $19 {[%emt 0:00:32]} 61. Re4 {[%emt 0:00:08] [#]} Nf3+ $1 {[%emt 0:00:29][%mdl 512]} 62. gxf3 {[%emt 0:00:05]} Qxb5 {[%emt 0:00:08]} 63. Bd4+ {[%emt 0:00:31]} Kg6 {[%emt 0:00:12] and ...c5 would now be decisive} 64. Ng2 {[%emt 0:00:51]} c5 {[%emt 0:00:15]} 65. Be3 {[%emt 0:00:17]} d5 {[%emt 0:00:22]} 66. Re5 {[%emt 0:00:08]} Qb8 {[%emt 0:00:12]} 67. f4 {[%emt 0:00:00]} d4 {[%emt 0:00:10]} 68. Bd2 {[%emt 0:00:42]} c4 {[%emt 0:00:07]} 69. Ne1 {[%emt 0:01:19]} c3 {[%emt 0:00:15]} 70. Bc1 {[%emt 0:00:15]} Qb1 {[%emt 0:00:16]} 71. Ba3 {[%emt 0:01:22]} Qa2+ {[%emt 0:00:19]} 0-1

[Event "29th Bosnjaci Open 2025"]
[Site "Bosnjaci"]
[Date "2025.01.03"]
[Round "1.8"]
[White "Hadzovic, Amir"]
[Black "Matozan, Zvonko"]
[Result "1-0"]
[ECO "B07"]
[WhiteElo "2316"]
[BlackElo "1907"]
[Annotator "TA"]
[PlyCount "51"]
[EventDate "2025.01.04"]
[EventType "swiss"]
[EventCountry "CRO"]
[SourceTitle "playchess.com"]
[Source "ChessBase"]
[SourceQuality "1"]
[TimeControl "5400+30"]

{[%evp 9,51,12,40,-2,0,-16,-24,-11,-22,-23,-25,-33,-12,-32,-29,-30,-12,-61,33,0,0,0,54,50,160,135,289,89,768,853,29991,29992,29992,29993,29993,29993,29993,29994,29995,29996,29997,29998,29998,29999]} 1. e4 {[%emt 0:00:03]} d6 {[%emt 0:00:37]} 2. Nc3 {[%emt 0:00:09]} Nc6 {[%emt 0:00:03]} 3. f4 {[%emt 0:00:28]} g6 {[%emt 0:00:15]} 4. Nf3 {[%emt 0:00:13]} Bg7 {[%emt 0:00:03]} 5. Bc4 {[%emt 0:00:24]} e6 {[%emt 0:00:15]} 6. O-O {[%emt 0:01:47]} Nge7 {[%emt 0:00:01]} 7. Qe1 {[%emt 0:00:41]} O-O {[%emt 0:00:09]} 8. d3 {[%emt 0:00:10] Black has an edge.} Na5 {[%emt 0:02:10]} 9. Bb3 {[%emt 0:00:26]} Nxb3 {[%emt 0:00:32]} 10. axb3 {[%emt 0:00:03]} a6 {[%emt 0:00:17]} 11. Qh4 {[%emt 0:01:16]} Nc6 {[%emt 0:00:33] ...Qxh4 is the strong threat.} 12. Qg3 {[%emt 0:01:19]} Nb4 {[%emt 0:04:05]} 13. Qf2 {[%emt 0:01:07]} (13. Rf2 $11) 13... c5 {[%emt 0:00:14]} ({Better is} 13... b6 $15) 14. e5 {[%emt 0:01:53]} b6 {[%emt 0:01:27]} 15. Ne4 {[%emt 0:00:44]} dxe5 {[%emt 0:01:03]} ({Black should play} 15... d5 $11 16. Nd6 f6) 16. fxe5 $14 {[%emt 0:00:15] Bg5 would now be deadly.} Nd5 {[%emt 0:02:01]} (16... Bb7 $14) 17. Bg5 $36 {[%emt 0:02:36][%mdl 2048] Black is under strong pressure. White is more active.} Qc7 {[%emt 0:00:27] [#]} (17... f6 $16) 18. c4 $2 {[%emt 0:03:08]} (18. Qh4 $18) 18... Nb4 $2 {[%emt 0:00:38][%mdl 8192]} (18... f5 $16) 19. Nf6+ $18 {[%emt 0:00:28]} Kh8 {[%emt 0:00:04]} 20. Qh4 {[%emt 0:00:19][%csl Gf6][%cal Rh4h7] White mates.} h5 {[%emt 0:00:58] [#]} 21. Nxh5 $1 {[%emt 0:01:56][%mdl 512]} gxh5 {[%emt 0:00:49]} 22. Qxh5+ {[%emt 0:00:43]} Kg8 {[%emt 0:00:01]} 23. Bf6 {[%emt 0:00:48]} Bxf6 {[%emt 0:01:03]} 24. Ng5 {[%emt 0:00:59]} Bxg5 {[%emt 0:01:03]} 25. Qxg5+ {[%emt 0:00:04]} Kh8 {[%emt 0:00:59]} 26. Rf6 {[%emt 0:00:13] Weighted Error Value: White=0.24 (precise) /Black=0.54.  Loses game:     	---       	Black=1      Missed win:     	White=1     	---        Mistake:       	White=1     	Black=4      Inaccurate:     	White=1     	Black=1      OK:         	White=2     	Black=5      Best:        	White=2     	---} 1-0

[Event "29th Bosnjaci Open 2025"]
[Site "Bosnjaci"]
[Date "2025.01.03"]
[Round "1.9"]
[White "Bobanac, Miro"]
[Black "Scevic, Antun"]
[Result "1-0"]
[ECO "A15"]
[WhiteElo "2157"]
[BlackElo "1837"]
[Annotator "RC"]
[PlyCount "63"]
[EventDate "2025.01.04"]
[EventType "swiss"]
[EventCountry "CRO"]
[SourceTitle "playchess.com"]
[Source "ChessBase"]
[SourceQuality "1"]
[TimeControl "5400+30"]

1. Nf3 {[%emt 0:00:05]} Nf6 {[%emt 0:00:23]} 2. c4 {[%emt 0:00:12]} b6 {[%emt 0:00:30]} 3. g3 {[%emt 0:00:10]} Bb7 {[%emt 0:00:12]} 4. Bg2 {[%emt 0:00:20]} e6 {[%emt 0:00:42]} 5. O-O {[%emt 0:00:18]} a5 {[%emt 0:01:01]} 6. Nc3 {[%emt 0:00:49]} Be7 {[%emt 0:01:02]} 7. Qc2 {[%emt 0:00:56]} Na6 {[%emt 0:00:45]} 8. a3 {[%emt 0:00:13]} c6 {[%emt 0:01:04]} 9. e4 {[%emt 0:01:57]} O-O {[%emt 0:02:47]} 10. e5 {[%emt 0:00:44]} Ne8 {[%emt 0:01:19]} 11. d4 {[%emt 0:00:43]} g6 {[%emt 0:00:19]} 12. Bh6 {[%emt 0:01:04]} Ng7 {[%emt 0:00:11]} 13. Ne4 {[%emt 0:00:43]} f5 {[%emt 0:01:22]} 14. exf6 {[%emt 0:02:15]} Bxf6 {[%emt 0:00:09]} 15. Nxf6+ {[%emt 0:00:32]} Qxf6 {[%emt 0:01:18]} 16. Ne5 {[%emt 0:00:32]} Bc8 {[%emt 0:00:14]} 17. f4 {[%emt 0:03:31]} Nf5 {[%emt 0:02:10]} 18. Bxf8 {[%emt 0:00:23]} Qxf8 {[%emt 0:00:53]} 19. Qf2 {[%emt 0:00:48]} Rb8 {[%emt 0:03:11]} 20. g4 {[%emt 0:00:27]} Ng7 {[%emt 0:00:14]} 21. Rad1 {[%emt 0:01:22]} Nc7 {[%emt 0:00:53]} 22. Qg3 {[%emt 0:01:58]} Nce8 {[%emt 0:03:08]} 23. f5 {[%emt 0:02:46]} exf5 {[%emt 0:00:39]} 24. Nxg6 {[%emt 0:00:17]} Qd6 {[%emt 0:04:41]} 25. Ne5 {[%emt 0:00:33]} Nf6 {[%emt 0:01:04]} 26. gxf5 {[%emt 0:01:15]} Ba6 {[%emt 0:02:01]} 27. Kh1 {[%emt 0:02:48]} Rf8 {[%emt 0:00:29]} 28. Rg1 {[%emt 0:00:26]} Qe7 {[%emt 0:00:37]} 29. Rde1 {[%emt 0:00:48]} Nfh5 {[%emt 0:02:34]} 30. Qg4 {[%emt 0:00:18]} Nf6 {[%emt 0:00:39]} 31. Qg5 {[%emt 0:00:27]} Qd8 {[%emt 0:01:45]} 32. Bd5+ {[%emt 0:00:35]} 1-0

[Event "29th Bosnjaci Open 2025"]
[Site "Bosnjaci"]
[Date "2025.01.03"]
[Round "1.10"]
[White "Mucic, Lovro"]
[Black "Zufic, Miroslav"]
[Result "0-1"]
[ECO "A03"]
[WhiteElo "1903"]
[BlackElo "2313"]
[Annotator "RC"]
[PlyCount "62"]
[EventDate "2025.01.04"]
[EventType "swiss"]
[EventCountry "CRO"]
[SourceTitle "playchess.com"]
[Source "ChessBase"]
[SourceQuality "1"]
[TimeControl "5400+30"]

1. f4 {[%emt 0:00:02]} d5 {[%emt 0:00:17]} 2. Nf3 {[%emt 0:00:07]} Nc6 {[%emt 0:00:25]} 3. e3 {[%emt 0:00:41]} g6 {[%emt 0:02:31]} 4. d4 {[%emt 0:00:44]} Bg7 {[%emt 0:01:12]} 5. a3 {[%emt 0:03:50]} e6 {[%emt 0:02:48]} 6. Bd3 {[%emt 0:01:31]} Nge7 {[%emt 0:01:10]} 7. O-O {[%emt 0:04:08]} a5 {[%emt 0:02:43]} 8. b3 {[%emt 0:01:44]} Nf5 {[%emt 0:03:30]} 9. Qe2 {[%emt 0:08:15]} Nce7 {[%emt 0:04:01]} 10. Ne5 {[%emt 0:00:00]} f6 {[%emt 0:07:07]} 11. Nf3 {[%emt 0:00:00]} Nd6 {[%emt 0:03:45]} 12. c4 {[%emt 0:01:05]} Ne4 {[%emt 0:03:06]} 13. Bd2 {[%emt 0:06:22]} b6 {[%emt 0:08:23]} 14. Nc3 {[%emt 0:01:23]} Bb7 {[%emt 0:00:21]} 15. b4 {[%emt 0:01:31]} O-O {[%emt 0:11:14]} 16. bxa5 {[%emt 0:02:06]} Nxd2 {[%emt 0:02:52]} 17. Nxd2 {[%emt 0:02:08]} Rxa5 {[%emt 0:00:51]} 18. a4 {[%emt 0:03:14]} Ra8 {[%emt 0:04:34]} 19. Nb3 {[%emt 0:01:01]} dxc4 {[%emt 0:02:25]} 20. Bxc4 {[%emt 0:00:13]} Nd5 {[%emt 0:00:04]} 21. Rfc1 {[%emt 0:01:23]} Kh8 {[%emt 0:02:30]} 22. a5 {[%emt 0:03:30]} Nxc3 {[%emt 0:07:05]} 23. Rxc3 {[%emt 0:00:03]} e5 {[%emt 0:00:29]} 24. a6 {[%emt 0:00:45]} Be4 {[%emt 0:01:52]} 25. Bb5 {[%emt 0:06:26]} Qd6 {[%emt 0:09:35]} 26. Qc4 {[%emt 0:02:23]} exf4 {[%emt 0:03:10]} 27. exf4 {[%emt 0:06:11]} Bd5 {[%emt 0:01:54]} 28. Qxc7 {[%emt 0:01:14]} Qb4 {[%emt 0:01:56]} 29. Bd7 {[%emt 0:04:30]} Bxb3 {[%emt 0:00:26]} 30. Kh1 {[%emt 0:02:43]} Bd5 {[%emt 0:02:03]} 31. a7 {[%emt 0:00:06]} Bxg2+ {[%emt 0:01:30]} 0-1

[Event "29th Bosnjaci Open 2025"]
[Site "Bosnjaci"]
[Date "2025.01.03"]
[Round "1.11"]
[White "Kovac, Petar"]
[Black "Mikic, Ivana"]
[Result "1-0"]
[ECO "E18"]
[WhiteElo "2289"]
[BlackElo "1901"]
[Annotator "TA"]
[PlyCount "65"]
[EventDate "2025.01.04"]
[EventType "swiss"]
[EventCountry "CRO"]
[SourceTitle "playchess.com"]
[Source "ChessBase"]
[SourceQuality "1"]
[TimeControl "5400+30"]

{[%evp 16,65,23,9,22,16,82,62,81,60,150,143,152,150,140,143,192,97,101,102,101,97,106,97,102,91,84,81,168,169,193,131,141,140,141,139,134,147,127,126,212,210,248,230,1560,144,162,150,2288,2112,1719,1700]} 1. d4 {[%emt 0:00:03]} Nf6 {[%emt 0:00:08]} 2. c4 {[%emt 0:00:09]} e6 {[%emt 0:00:09]} 3. Nf3 {[%emt 0:00:07]} b6 {[%emt 0:00:14]} 4. g3 {[%emt 0:00:07]} Bb7 {[%emt 0:00:06]} 5. Bg2 {[%emt 0:00:29]} Be7 {[%emt 0:00:22]} 6. O-O {[%emt 0:00:25]} O-O {[%emt 0:00:22]} 7. Nc3 {[%emt 0:01:54]} d5 {[%emt 0:01:07]} 8. cxd5 {[%emt 0:01:30]} Nxd5 {[%emt 0:01:25]} 9. Qc2 {[%emt 0:01:38]} c5 {[%emt 0:04:31]} (9... Nd7 {simplifies} 10. e4 Nxc3 11. bxc3 c5) 10. dxc5 {[%emt 0:05:59]} Bxc5 {[%emt 0:04:45]} (10... Nxc3 $11 11. bxc3 g6 12. cxb6 axb6) 11. Ng5 $16 {[%emt 0:05:03][%csl Gg5][%cal Rc2h7]} g6 {[%emt 0:05:08] White is slightly better.} 12. Rd1 {[%emt 0:07:21]} Qc8 {[%emt 0:03:00]} (12... Nd7 $14) 13. Nge4 {[%emt 0:05:57] Hoping for Bh6.} Be7 {[%emt 0:07:07]} 14. Bh6 {[%emt 0:08:18][%cal Oa1c1]} Rd8 {[%emt 0:05:49]} 15. Rac1 {[%emt 0:04:37]} Na6 {[%emt 0:11:38]} (15... Nc6 $16 16. Nxd5 Rxd5 17. Rxd5 exd5) 16. Nxd5 {[%emt 0:06:08]} (16. b4 $18 {Nxd5 would now be deadly.} Bf8 17. Bxf8 (17. Nxd5 Qxc2 18. Rxc2 Bxh6 $11) 17... Kxf8 18. Qa4) 16... exd5 {[%emt 0:10:23]} 17. Qa4 {[%emt 0:11:28] White wants to mate with Qd4.} Qf5 {[%emt 0:06:25] [#]} 18. Qd4 {[%emt 0:01:38]} f6 {[%emt 0:01:04]} 19. Nc3 {[%emt 0:02:42] White is much more active.} Nc7 {[%emt 0:10:35]} 20. Qf4 {[%emt 0:07:13]} Qe5 {[%emt 0:04:23]} 21. h4 {[%emt 0:05:40]} Rac8 {[%emt 0:00:54]} (21... Bf8 $16) 22. Qa4 $18 {[%emt 0:02:32]} a6 {[%emt 0:03:15]} 23. Bf4 {[%emt 0:02:59]} ({White should play} 23. e4 $18 {Black must now prevent Bf4.} Bf8 24. Bxf8 Kxf8 25. exd5) 23... Qe6 $16 {[%emt 0:00:39]} 24. Bxc7 {[%emt 0:02:29]} Rxc7 {[%emt 0:00:07] [#]} 25. Nxd5 $1 {[%emt 0:00:54][%mdl 512]} Rxc1 {[%emt 0:00:48]} 26. Nxe7+ {[%emt 0:00:11]} Qxe7 {[%emt 0:00:07]} 27. Rxc1 {[%emt 0:00:19]} Bxg2 {[%emt 0:00:53]} (27... Kg7 $16 28. Qf4 Bxg2) 28. Kxg2 $18 {[%emt 0:00:06]} Qxe2 $16 {[%emt 0:00:51][%cal Oe2d3] KQR-KQR} 29. Qb3+ {[%emt 0:00:16]} Kg7 $2 {[%emt 0:00:37]} (29... Kh8 30. Qxb6 Qe4+ 31. Kg1 Qd4) 30. Qxb6 $2 {[%emt 0:01:23]} (30. Rc7+ $18 {and the rest is easy.} Kh6 31. Qf7 (31. Qxb6 Qe4+ 32. Kh2 Rd1 $11) 31... Qe4+ 32. Kh2) 30... Qe4+ {[%emt 0:01:17]} 31. Kh2 {[%emt 0:01:13]} Rd2 {[%emt 0:00:22]} (31... Qd4 $16 32. Qxd4 (32. Qxa6 Qxf2+ 33. Kh1 Rd2 34. Rc7+ Kh6) 32... Rxd4) 32. Rc7+ $18 {[%emt 0:00:26]} (32. Qxa6 $2 {gets mated.} Rxf2+ 33. Kh3 Qg2+ 34. Kg4 h5#) 32... Kh6 {[%emt 0:00:10]} 33. Qxf6 {[%emt 0:00:13] Weighted Error Value: White=0.36/Black=0.31.  Loses game:     	---       	Black=1      Missed win:     	White=1     	---        Mistake:       	White=2     	Black=6      OK:         	White=11    	Black=3      Best:        	White=5     	Black=5} 1-0

[Event "29th Bosnjaci Open 2025"]
[Site "Bosnjaci"]
[Date "2025.01.03"]
[Round "1.12"]
[White "Vranjic, Marko"]
[Black "Franc, Borna"]
[Result "0-1"]
[ECO "C88"]
[WhiteElo "1901"]
[BlackElo "2287"]
[Annotator "TA"]
[PlyCount "80"]
[EventDate "2025.01.04"]
[EventType "swiss"]
[EventCountry "CRO"]
[SourceTitle "playchess.com"]
[Source "ChessBase"]
[SourceQuality "1"]
[TimeControl "5400+30"]

{[%evp 22,80,48,14,23,19,20,15,32,19,42,29,35,0,0,0,7,16,19,0,6,-64,0,-77,-53,-77,-76,-71,-61,-57,-74,-59,-58,-124,-141,-147,-129,-154,-133,-214,-204,-422,-422,-379,-382,-390,-383,-577,-575,-552,-586,-580,-579,-565,-560,-622,-574,-582,-539,-585,-565]} 1. e4 {[%emt 0:00:30]} e5 {[%emt 0:00:06]} 2. Nf3 {[%emt 0:00:00]} Nc6 {[%emt 0:00:06]} 3. Bb5 {[%emt 0:00:03]} a6 {[%emt 0:00:05]} 4. Ba4 {[%emt 0:00:06]} Nf6 {[%emt 0:00:05]} 5. O-O {[%emt 0:00:18]} Be7 {[%emt 0:00:07]} 6. Re1 {[%emt 0:00:28]} b5 {[%emt 0:00:05]} 7. Bb3 {[%emt 0:00:05]} O-O {[%emt 0:00:05]} 8. a4 {[%emt 0:04:43]} Bb7 {[%emt 0:03:19]} 9. d3 {[%emt 0:03:12]} d6 {[%emt 0:00:46]} 10. Nc3 {[%emt 0:03:48]} Na5 {[%emt 0:04:19]} 11. Ba2 {[%emt 0:01:09]} Qd7 {[%emt 0:01:03]} 12. Bd2 {[%emt 0:09:32]} c5 {[%emt 0:06:49]} 13. Ne2 {[%emt 0:05:17]} b4 {[%emt 0:02:33]} 14. Ng3 {[%emt 0:01:41]} g6 {[%emt 0:01:01][%cal Ob7c6] The position is equal.} 15. h3 {[%emt 0:05:19]} Kg7 {[%emt 0:07:04]} 16. Nh2 {[%emt 0:16:38][%cal Bf3h2,Bh2f1,Bf1e3,Be3c4][%mdl 32]} Ng8 {[%emt 0:00:44][%cal Ob7c6] Active counter play!} 17. Qg4 {[%emt 0:07:25]} Qxg4 {[%emt 0:00:25]} 18. hxg4 {[%emt 0:03:08]} Bc6 {[%emt 0:00:16][%cal Oc6d7]} 19. f3 {[%emt 0:03:11]} Rab8 {[%emt 0:03:14][%cal Oe7d8]} (19... Bxa4 $2 {loses.} 20. Bb1 $18 (20. Bd5 Bxc2 21. Rxa5 Bh4 $18)) 20. Nhf1 {[%emt 0:05:29]} Bd8 {[%emt 0:00:10]} 21. Bb3 {[%emt 0:02:39]} ({White should try} 21. Rec1 $11) 21... Bh4 {[%emt 0:03:52]} (21... Nxb3 $15 22. cxb3 Bd7) 22. Kh2 {[%emt 0:02:05]} (22. Bc4 $11 {keeps the balance.}) 22... Bd7 {[%emt 0:09:32]} 23. Ne3 {[%emt 0:03:32]} Nxb3 {[%emt 0:00:40]} 24. cxb3 {[%emt 0:00:01]} Be6 {[%emt 0:00:15][%cal Oh4g5]} 25. Nc4 {[%emt 0:01:28]} Rfd8 {[%emt 0:00:53]} 26. Kh3 {[%emt 0:02:43]} Be7 {[%emt 0:00:14]} 27. Nf1 {[%emt 0:01:18]} (27. Kh2 $15) 27... h5 $17 {[%emt 0:03:21]} 28. Nfe3 {[%emt 0:02:13]} hxg4+ {[%emt 0:04:37]} 29. fxg4 {[%emt 0:00:08]} Bg5 {[%emt 0:01:22]} 30. Rad1 {[%emt 0:02:15]} (30. Kg3 $17) 30... Nf6 $19 {[%emt 0:03:28]} 31. Nf5+ $2 {[%emt 0:03:39] [#]} (31. Kg3) 31... gxf5 {[%emt 0:02:27]} 32. Bxg5 {[%emt 0:00:02]} Rh8+ {[%emt 0:00:08]} (32... fxg4+ $2 33. Kh2 $19) 33. Kg3 {[%emt 0:00:54]} f4+ {[%emt 0:00:03]} ({Weaker is} 33... Nxg4 34. exf5 Bxf5 35. Nxd6 $17) (33... fxg4 34. Nxd6 Nh5+ (34... Bxb3 35. Rd2 $15) 35. Kf2 $15) 34. Kf2 {[%emt 0:02:22]} (34. Bxf4 $142 exf4+ 35. Kxf4) 34... Nxg4+ {[%emt 0:00:05] Black is clearly winning.} 35. Kf3 {[%emt 0:03:31]} Nh2+ {[%emt 0:00:18]} 36. Kf2 {[%emt 0:00:31]} f6 {[%emt 0:00:03]} 37. Bxf4 {[%emt 0:01:28]} exf4 {[%emt 0:00:04]} 38. Nxd6 {[%emt 0:00:07]} Rhd8 {[%emt 0:00:11]} 39. Nc4 {[%emt 0:00:30]} Bxc4 {[%emt 0:00:08]} 40. bxc4 {[%emt 0:00:27]} Ng4+ {[%emt 0:00:04] Weighted Error Value: White=0.45/Black=0.11 (very precise) .  Mistake:       	White=6     	Black=1      Inaccurate:     	White=1     	---        OK:         	White=10    	Black=14     Best:        	White=2     	Black=1} 0-1